fUST/lending_fUST_20241024
["ID","MTS","AMOUNT","RATE_DAILY","PERIOD"]
[340717136,1729704648868,-10000.0,0.00021,5]
[340717137,1729704648877,-10226.27804923,0.00021,2]
[340717138,1729704648890,-523.0,0.00021,2]
[340717139,1729704648900,-3682.87558138,0.00021,2]
[340717140,1729704648910,-1000.0,0.00021,2]
[340717141,1729704648920,-3000.0,0.00021,2]
[340717142,1729704648930,-216.483461,0.00021,2]
[340717143,1729704648939,-512.477678,0.00021,2]
[340717144,1729704648949,-512.477678,0.00021,2]
[340717145,1729704648960,-649.131643,0.00021,2]
[340717146,1729704648969,-454.63183459,0.00021,4]
[340717147,1729704648979,-151.0,0.00021,2]
[340717148,1729704648988,-286.04866,0.00021,2]
[340717149,1729704648998,-1503.87721,0.00021,2]
[340717150,1729704649007,-1503.87721,0.00021,2]
[340717151,1729704649018,-187.227855,0.00021,2]
[340717152,1729704649027,-187.227855,0.00021,2]
[340717153,1729704649037,-151.0,0.00021,2]
[340717154,1729704649047,-151.0,0.00021,2]
[340717155,1729704649056,-151.0,0.00021,2]
[340717156,1729704649066,-454.63183459,0.00021,4]
[340717157,1729704649075,-151.0,0.00021,2]
[340717158,1729704649085,-151.0,0.00021,2]
[340717159,1729704649094,-944.958404,0.00021,2]
[340717160,1729704649104,-944.958404,0.00021,2]
[340717161,1729704649115,-10000.0,0.0002101,2]
[340717162,1729704649125,-151.0,0.0002101,2]
[340717163,1729704649134,-151.0,0.0002101,2]
[340717164,1729704649144,-3000.0,0.0002101,2]
[340717165,1729704649153,-151.0,0.0002101,2]
[340717166,1729704649163,-151.0,0.0002101,2]
[340717167,1729704649172,-151.0,0.0002101,2]
[340717168,1729704649182,-614.015692,0.0002101,2]
[340717169,1729704649192,-614.015692,0.0002101,2]
[340717170,1729704649201,-173.10524,0.0002101,2]
[340717171,1729704649211,-173.10524,0.0002101,2]
[340717172,1729704649220,-151.0,0.0002101,2]
[340717173,1729704649229,-151.0,0.0002101,2]
[340717174,1729704649239,-541.414558,0.0002101,2]
[340717175,1729704649248,-541.414558,0.0002101,2]
[340717176,1729704649257,-172.184349,0.0002102,2]
[340717177,1729704649267,-172.184349,0.0002102,2]
[340717178,1729704649276,-257.591428,0.0002102,2]
[340717179,1729704649285,-257.591428,0.0002102,2]
[340717180,1729704649295,-151.0,0.0002102,2]
[340717181,1729704649304,-293.91397,0.0002102,2]
[340717182,1729704649313,-151.0,0.0002102,2]
[340717183,1729704649323,-349.889533,0.0002102,2]
[340717184,1729704649333,-349.889533,0.0002102,2]
[340717185,1729704649342,-2755.531553,0.0002102,2]
[340717186,1729704649351,-2755.531553,0.0002102,2]
[340717187,1729704649364,-163.358939,0.0002102,2]
[340717188,1729704649374,-151.0,0.0002102,2]
[340717189,1729704649383,-163.358939,0.0002102,2]
[340717190,1729704649393,-686.520192,0.0002102,2]
[340717191,1729704649402,-686.520192,0.0002102,2]
[340717192,1729704649411,-3000.0,0.0002102,2]
[340717193,1729704649421,-1920.097362,0.0002102,2]
[340717194,1729704649430,-227.33081,0.0002103,2]
[340717195,1729704649439,-227.33081,0.0002103,2]
[340717196,1729704649448,-151.0,0.0002103,2]
[340717197,1729704649457,-3000.0,0.0002103,2]
[340717198,1729704649466,-3000.0,0.0002104,2]
[340717199,1729704649475,-151.0,0.0002105,2]
[340717200,1729704649484,-3000.0,0.0002105,2]
[340717201,1729704649493,-3000.0,0.0002106,2]
[340717202,1729704649503,-444.69860864,0.00021067,2]
[340717203,1729704649512,-3000.0,0.0002107,2]
[340717204,1729704649521,-3000.0,0.0002108,2]
[340717205,1729704649531,-3000.0,0.0002109,2]
[340717206,1729704649540,-1600.0,0.00021096,2]
[340717207,1729704649551,-3000.0,0.000211,2]
[340717208,1729704649560,-3000.0,0.0002111,2]
[340717209,1729704649569,-2000.0,0.00021115,2]
[340717210,1729704649579,-335.1642948,0.00021115,2]
[340717211,1729704649588,-2000.0,0.00021115,2]
[340717212,1729704649597,-1241.79083115,0.00021115,2]
[340717213,1729704649609,-3000.0,0.0002112,2]
[340717214,1729704649618,-3000.0,0.0002113,2]
[340717215,1729704649627,-3000.0,0.0002114,2]
[340717216,1729704649637,-3000.0,0.0002115,2]
[340717217,1729704649646,-500.0,0.00021153,2]
[340717218,1729704649656,-3000.0,0.0002116,2]
[340717219,1729704649666,-512.477678,0.0002116,2]
[340717220,1729704649676,-512.477678,0.0002116,2]
[340717221,1729704649685,-649.131643,0.0002116,2]
[340717222,1729704649694,-151.0,0.0002116,2]
[340717223,1729704649703,-1503.87721,0.0002116,2]
[340717224,1729704649713,-1503.87721,0.0002116,2]
[340717225,1729704649723,-187.227855,0.0002116,2]
[340717226,1729704649733,-187.227855,0.0002116,2]
[340717227,1729704649742,-151.0,0.0002116,2]
[340717228,1729704649752,-151.0,0.0002116,2]
[340717229,1729704649762,-199.960694,0.0002116,2]
[340717230,1729704649772,-151.0,0.0002116,2]
[340717231,1729704649781,-163.417314,0.0002116,2]
[340717232,1729704649790,-944.958404,0.0002116,2]
[340717233,1729704649800,-944.958404,0.0002116,2]
[340717234,1729704649809,-3000.0,0.0002117,2]
[340717235,1729704649819,-324.67349003,0.00021178,2]
[340717236,1729704649828,-3000.0,0.0002118,2]
[340717237,1729704649838,-151.0,0.0002118,2]
[340717238,1729704649847,-151.0,0.0002118,2]
[340717239,1729704649857,-173.10524,0.0002118,2]
[340717240,1729704649867,-173.10524,0.0002118,2]
[340717241,1729704649876,-1700.0,0.0002119,2]
[340717242,1729704649887,-349.889533,0.0002119,2]
[340717243,1729704649897,-349.889533,0.0002119,2]
[340717244,1729704649906,-2755.531553,0.0002119,2]
[340717245,1729704649915,-2755.531553,0.0002119,2]
[340717246,1729704649925,-163.358939,0.0002119,2]
[340717247,1729704649935,-163.358939,0.0002119,2]
[340717248,1729704649943,-10000.0,0.0002119,2]
[340717249,1729704649953,-151.0,0.0002119,2]
[340717250,1729704649963,-151.0,0.0002119,2]
[340717251,1729704649972,-3000.0,0.0002119,2]
[340717252,1729704649981,-151.0,0.0002119,2]
[340717253,1729704649990,-614.015692,0.0002119,2]
[340717254,1729704649999,-614.015692,0.0002119,2]
[340717255,1729704650008,-151.0,0.0002119,2]
[340717256,1729704650018,-151.0,0.0002119,2]
[340717257,1729704650027,-541.414558,0.0002119,2]
[340717258,1729704650037,-541.414558,0.0002119,2]
[340717259,1729704650046,-507.97057439,0.000212,2]
[340717260,1729704650055,-3000.0,0.000212,2]
[340717261,1729704650065,-454.63183459,0.000212,4]
[340717262,1729704650074,-454.63183459,0.000212,4]
[340717263,1729704650083,-151.0,0.0002121,2]
[340717264,1729704650092,-151.0,0.0002121,2]
[340717265,1729704650102,-3000.0,0.0002121,2]
[340717266,1729704650114,-3000.0,0.0002122,2]
[340717267,1729704650123,-686.520192,0.0002123,2]
[340717268,1729704650132,-686.520192,0.0002123,2]
[340717269,1729704650141,-3000.0,0.0002123,2]
[340717270,1729704650151,-1920.097362,0.0002123,2]
[340717271,1729704650160,-227.33081,0.0002124,2]
[340717272,1729704650169,-227.33081,0.0002124,2]
[340717273,1729704650178,-151.0,0.0002124,2]
[340717274,1729704650187,-3000.0,0.0002124,2]
[340717275,1729704650196,-1600.0,0.00021245,2]
[340717276,1729704650206,-172.184349,0.0002125,2]
[340717277,1729704650215,-172.184349,0.0002125,2]
[340717278,1729704650224,-257.591428,0.0002125,2]
[340717279,1729704650234,-257.591428,0.0002125,2]
[340717280,1729704650243,-151.0,0.0002125,2]
[340717281,1729704650253,-3000.0,0.0002125,2]
[340717282,1729704650262,-1700.0,0.00021252,2]
[340717283,1729704650271,-3000.0,0.0002126,2]
[340717284,1729704650280,-500.0,0.00021263,2]
[340717285,1729704650289,-3000.0,0.0002127,2]
[340717286,1729704650298,-3000.0,0.0002128,2]
[340717287,1729704650307,-3000.0,0.0002129,2]
[340717288,1729704650317,-3000.0,0.000213,2]
[340717289,1729704650326,-3000.0,0.0002131,2]
[340717290,1729704650335,-3000.0,0.0002132,2]
[340717291,1729704650344,-3000.0,0.0002133,2]
[340717292,1729704650353,-500.0,0.00021333,2]
[340717293,1729704650364,-3000.0,0.0002134,2]
[340717294,1729704650373,-1503.87721,0.0002134,2]
[340717295,1729704650382,-1503.87721,0.0002134,2]
[340717296,1729704650393,-198.573256,0.0002134,2]
[340717297,1729704650402,-151.0,0.0002134,2]
[340717298,1729704650411,-151.0,0.0002134,2]
[340717299,1729704650420,-944.958404,0.0002134,2]
[340717300,1729704650430,-944.958404,0.0002134,2]
[340717301,1729704650439,-500.0,0.0002135,2]
[340717302,1729704650447,-3000.0,0.0002135,2]
[340717303,1729704650457,-512.477678,0.0002135,2]
[340717304,1729704650467,-512.477678,0.0002135,2]
[340717305,1729704650476,-649.131643,0.0002135,2]
[340717306,1729704650485,-151.0,0.0002135,2]
[340717307,1729704650495,-187.227855,0.0002135,2]
[340717308,1729704650503,-187.227855,0.0002135,2]
[340717309,1729704650512,-500.0,0.00021353,2]
[340717310,1729704650522,-3000.0,0.0002136,2]
[340717311,1729704650531,-3000.0,0.0002137,2]
[340717312,1729704650540,-3000.0,0.0002138,2]
[340717313,1729704650551,-151.0,0.0002138,2]
[340717314,1729704650560,-182.121448,0.0002138,2]
[340717315,1729704650571,-173.10524,0.0002138,2]
[340717316,1729704650581,-173.10524,0.0002138,2]
[340717317,1729704650591,-10000.0,0.0002139,2]
[340717318,1729704650601,-151.0,0.0002139,2]
[340717319,1729704650614,-190.073972,0.0002139,2]
[340717320,1729704650624,-3000.0,0.0002139,2]
[340717321,1729704650634,-151.0,0.0002139,2]
[340717322,1729704650643,-614.015692,0.0002139,2]
[340717323,1729704650653,-614.015692,0.0002139,2]
[340717324,1729704650662,-151.0,0.0002139,2]
[340717325,1729704650671,-151.0,0.0002139,2]
[340717326,1729704650681,-541.414558,0.0002139,2]
[340717327,1729704650690,-541.414558,0.0002139,2]
[340717328,1729704650702,-3000.0,0.000214,2]
[340717329,1729704650713,-454.63183459,0.000214,4]
[340717330,1729704650724,-454.63183459,0.000214,4]
[340717331,1729704650735,-349.889533,0.0002141,2]
[340717332,1729704650745,-349.889533,0.0002141,2]
[340717333,1729704650756,-2755.531553,0.0002141,2]
[340717334,1729704650765,-2755.531553,0.0002141,2]
[340717335,1729704650776,-163.358939,0.0002141,2]
[340717336,1729704650786,-163.358939,0.0002141,2]
[340717337,1729704650795,-3000.0,0.0002141,2]
[340717338,1729704650804,-3000.0,0.0002142,2]
[340717339,1729704650813,-151.0,0.0002143,2]
[340717340,1729704650823,-3000.0,0.0002143,2]
[340717341,1729704650835,-2501.97080545,0.00021434,2]
[340717342,1729704650844,-2500.0,0.00021434,2]
[340717343,1729704650853,-2500.0,0.00021434,2]
[340717344,1729704650863,-151.0,0.0002144,2]
[340717345,1729704650873,-3000.0,0.0002144,2]
[340717346,1729704650883,-500.0,0.00021448,2]
[340717347,1729704650897,-3000.0,0.0002145,2]
[340717348,1729704650906,-686.520192,0.0002146,2]
[340717349,1729704650915,-686.520192,0.0002146,2]
[340717350,1729704650925,-3000.0,0.0002146,2]
[340717351,1729704650934,-1920.097362,0.0002146,2]
[340717352,1729704650943,-3000.0,0.0002147,2]
[340717353,1729704650952,-3132.173454,0.0002148,2]
[340717354,1729704650962,-500.0,0.00021487,2]
[340717355,1729704650974,-1700.0,0.00021508,2]
[340717356,1729704651130,-454.63183459,0.000216,4]
[340717357,1729704651142,-454.63183459,0.000216,4]
[340717358,1729704651152,-1700.0,0.00021619,2]
[340717359,1729704651161,-500.0,0.00021633,2]
[340717360,1729704651170,-2500.0,0.00021634,2]
[340717361,1729704651179,-2500.0,0.00021634,2]
[340717362,1729704651188,-257.591428,0.00021634,2]
[340717363,1729704651197,-257.591428,0.00021634,2]
[340717364,1729704651206,-151.0,0.00021634,2]
[340717365,1729704651215,-900.0,0.00021681,2]
[340717366,1729704651224,-500.0,0.00021728,2]
[340717367,1729704651235,-500.0,0.00021733,2]
[340717368,1729704651246,-1503.87721,0.00021733,2]
[340717369,1729704651257,-1503.87721,0.00021733,2]
[340717370,1729704651268,-151.0,0.00021733,2]
[340717371,1729704651277,-151.0,0.00021733,2]
[340717372,1729704651286,-944.958404,0.00021733,2]
[340717373,1729704651295,-944.958404,0.00021733,2]
[340717374,1729704651306,-500.0,0.00021751,2]
[340717375,1729704651316,-1600.0,0.00021792,2]
[340717376,1729704651325,-454.63183459,0.000218,4]
[340717377,1729704651334,-454.63183459,0.000218,4]
[340717378,1729704651344,-500.0,0.00021802,2]
[340717379,1729704651354,-500.0,0.00021891,2]
[340717380,1729704651364,-1600.0,0.00021911,2]
[340717381,1729704651374,-151.0,0.00021917,2]
[340717382,1729704651383,-187.227855,0.00021917,2]
[340717383,1729704651393,-187.227855,0.00021917,2]
[340717384,1729704651403,-1000.0,0.00021917,7]
[340717385,1729704651412,-1590.0,0.00021918,2]
[340717386,1729704651421,-151.4425232,0.00021918,2]
[340717387,1729704651431,-500.0,0.00021918,2]
[340717388,1729704651440,-500.0,0.00021918,2]
[340717389,1729704651449,-500.0,0.00021918,2]
[340717390,1729704651459,-1655.6607362,0.00021918,2]
[340717391,1729704651468,-166.666666,0.00021918,2]
[340717392,1729704651477,-1268.2278369,0.00021918,7]
[340717393,1729704651487,-512.477678,0.00021918,7]
[340717394,1729704651496,-512.477678,0.00021918,7]
[340717395,1729704651506,-649.131643,0.00021918,7]
[340717396,1729704651515,-1600.0,0.00021919,2]
[340717397,1729704651525,-158.55936512,0.0002192,7]
[340717398,1729704651535,-158.55936512,0.0002192,7]
[340717399,1729704651545,-158.55936512,0.0002192,7]
[340717400,1729704651555,-158.55936512,0.0002192,7]
[340717401,1729704651564,-158.55936512,0.0002192,7]
[340717402,1729704651575,-158.55936512,0.0002192,7]
[340717403,1729704651584,-158.55936512,0.0002192,7]
[340717404,1729704651594,-158.55936512,0.0002192,7]
[340717405,1729704651604,-158.55936512,0.0002192,7]
[340717406,1729704651616,-158.55936512,0.0002192,7]
[340717407,1729704651625,-158.55936512,0.0002192,7]
[340717408,1729704651635,-158.55936512,0.0002192,7]
[340717409,1729704651645,-158.55936512,0.0002192,7]
[340717410,1729704651655,-158.55936512,0.0002192,7]
[340717411,1729704651665,-159.05,0.0002192,7]
[340717412,1729704651675,-178.39178576,0.0002192,7]
[340717413,1729704651684,-178.39178576,0.0002192,7]
[340717414,1729704651693,-178.39178576,0.0002192,7]
[340717415,1729704651704,-178.39178576,0.0002192,7]
[340717416,1729704651714,-178.39178576,0.0002192,7]
[340717417,1729704651725,-178.39178576,0.0002192,7]
[340717418,1729704651736,-178.39178576,0.0002192,7]
[340717419,1729704651747,-178.39178576,0.0002192,7]
[340717420,1729704651756,-178.39178576,0.0002192,7]
[340717421,1729704651766,-178.39178576,0.0002192,7]
[340717422,1729704651776,-178.39178576,0.0002192,7]
[340717423,1729704651785,-178.39178576,0.0002192,7]
[340717424,1729704651794,-178.39178576,0.0002192,7]
[340717425,1729704651803,-178.39178576,0.0002192,7]
[340717426,1729704651813,-178.39178576,0.0002192,7]
[340717427,1729704651822,-178.39178576,0.0002192,7]
[340717428,1729704651832,-178.39178576,0.0002192,7]
[340717429,1729704651842,-178.39178576,0.0002192,7]
[340717430,1729704651851,-178.39178576,0.0002192,7]
[340717431,1729704651863,-178.89,0.0002192,7]
[340717432,1729704651873,-166.41639504,0.0002192,7]
[340717433,1729704651883,-166.91,0.0002192,7]
[340717434,1729704651894,-1600.0,0.00021942,2]
[340717435,1729704651903,-3000.0,0.00021993,2]
[340717436,1729704651912,-2501.60025679,0.00021993,2]
[340717437,1729704651921,-954.50286223,0.00021996,2]
[340717438,1729704651931,-1700.0,0.00021997,2]
[340717439,1729704651941,-151.0,0.00021997,7]
[340717440,1729704651951,-173.10524,0.00021997,7]
[340717441,1729704651963,-173.10524,0.00021997,7]
[340717442,1729704651972,-221.46160597,0.00022,2]
[340717443,1729704651982,-10000.0,0.00022,7]
[340717444,1729704651991,-501.82,0.00022,2]
[340717445,1729704651999,-25519.44170639,0.00022,2]
[340717446,1729704652009,-352.0,0.00022,5]
[340717447,1729704652018,-300.0,0.00022,2]
[340717448,1729704652027,-2000.0,0.00022,2]
[340717449,1729704652037,-237.04811748,0.00022,2]
[340717450,1729704652046,-159.0,0.00022,2]
[340717451,1729704652055,-8406.87296218,0.00022,2]
[340717452,1729704652064,-158.31202444,0.00022,2]
[340717453,1729704652073,-319433.12209792,0.00022,30]
[340717454,1729704652082,-172.184349,0.00022,7]
[340717455,1729704652092,-172.184349,0.00022,7]
[340717456,1729704652101,-172.184349,0.00022,7]
[340717457,1729704652112,-172.184349,0.00022,7]
[340717458,1729704652121,-227.33081,0.00022,7]
[340717459,1729704652130,-227.33081,0.00022,7]
[340717460,1729704652140,-227.33081,0.00022,7]
[340717461,1729704652150,-227.33081,0.00022,7]
[340717462,1729704652159,-151.0,0.00022,7]
[340717463,1729704652169,-151.0,0.00022,7]
[340717464,1729704652179,-257.591428,0.00022,7]
[340717465,1729704652188,-257.591428,0.00022,7]
[340717466,1729704652198,-151.0,0.00022,7]
[340717467,1729704652208,-151.0,0.00022,7]
[340717468,1729704652218,-349.889533,0.00022,7]
[340717469,1729704652227,-349.889533,0.00022,7]
[340717470,1729704652236,-2755.531553,0.00022,7]
[340717471,1729704652246,-2755.531553,0.00022,7]
[340717472,1729704652256,-163.358939,0.00022,7]
[340717473,1729704652266,-151.0,0.00022,7]
[340717474,1729704652276,-163.358939,0.00022,7]
[340717475,1729704652285,-10000.0,0.00022,7]
[340717476,1729704652295,-10000.0,0.00022,7]
[340717477,1729704652305,-686.520192,0.00022,7]
[340717478,1729704652315,-686.520192,0.00022,7]
[340717479,1729704652325,-151.0,0.00022,7]
[340717480,1729704652335,-151.0,0.00022,7]
[340717481,1729704652345,-1920.097362,0.00022,7]
[340717482,1729704652354,-512.477678,0.00022,7]
[340717483,1729704652367,-512.477677,0.00022,7]
[340717484,1729704652376,-151.0,0.00022,7]
[340717485,1729704652386,-151.0,0.00022,7]
[340717486,1729704652396,-151.0,0.00022,7]
[340717487,1729704652405,-649.131639,0.00022,7]
[340717488,1729704652414,-614.015692,0.00022,7]
[340717489,1729704652424,-614.015692,0.00022,7]
[340717490,1729704652434,-614.015692,0.00022,7]
[340717491,1729704652444,-614.015692,0.00022,7]
[340717492,1729704652454,-173.10524,0.00022,7]
[340717493,1729704652463,-173.10524,0.00022,7]
[340717494,1729704652472,-151.0,0.00022,7]
[340717495,1729704652481,-151.0,0.00022,7]
[340717496,1729704652490,-169.999149,0.00022,7]
[340717497,1729704652499,-151.0,0.00022,7]
[340717498,1729704652507,-541.414558,0.00022,7]
[340717499,1729704652517,-541.414558,0.00022,7]
[340717500,1729704652526,-541.414558,0.00022,7]
[340717501,1729704652537,-541.414558,0.00022,7]
[340717502,1729704652546,-1503.87721,0.00022,7]
[340717503,1729704652556,-1503.877202,0.00022,7]
[340717504,1729704652565,-187.227855,0.00022,7]
[340717505,1729704652575,-187.227852,0.00022,7]
[340717506,1729704652584,-151.0,0.00022,7]
[340717507,1729704652593,-151.0,0.00022,7]
[340717508,1729704652603,-944.958404,0.00022,7]
[340717509,1729704652618,-944.958397,0.00022,7]
[340717510,1729704652627,-424.0681735,0.0002201,16]
[340717511,1729704652636,-500.0,0.00022068,2]
[340717512,1729704652646,-1152.0,0.00022111,2]
[340717513,1729704652655,-900.0,0.00022129,2]
[340717514,1729704652664,-1600.0,0.00022134,2]
[340717515,1729704652673,-500.0,0.00022179,2]
[340717516,1729704652682,-1991.32434471,0.00022193,2]
[340717517,1729704652691,-3000.0,0.00022193,2]
[340717518,1729704652700,-1700.0,0.00022251,2]
[340717519,1729704652709,-1600.0,0.00022269,2]
[340717520,1729704652718,-500.0,0.00022291,2]
[340717521,1729704652727,-1324.01913218,0.000223,2]
[340717522,1729704652736,-900.0,0.00022327,2]
[340717523,1729704652745,-1600.0,0.00022386,2]
[340717524,1729704652754,-349.889533,0.00022386,7]
[340717525,1729704652763,-349.889533,0.00022386,7]
[340717526,1729704652772,-2755.531553,0.00022386,7]
[340717527,1729704652782,-2755.531553,0.00022386,7]
[340717528,1729704652791,-163.358939,0.00022386,7]
[340717529,1729704652800,-151.0,0.00022386,7]
[340717530,1729704652810,-163.358939,0.00022386,7]
[340717531,1729704652819,-151.0,0.00022386,7]
[340717532,1729704652829,-614.015692,0.00022386,7]
[340717533,1729704652838,-614.015696,0.00022386,7]
[340717534,1729704652847,-151.0,0.00022386,7]
[340717535,1729704652857,-541.414558,0.00022386,7]
[340717536,1729704652866,-541.414556,0.00022386,7]
[340717537,1729704652875,-500.0,0.00022403,2]
[340717538,1729704652885,-900.0,0.00022411,2]
[340717539,1729704652896,-166.666666,0.00022431,2]
[340717540,1729704652906,-1600.0,0.00022453,2]
[340717541,1729704652915,-1700.0,0.00022453,2]
[340717542,1729704652924,-184.114358,0.00022453,7]
[340717543,1729704652933,-1000.0,0.00022465,9]
[340717544,1729704652943,-500.0,0.00022504,2]
[340717545,1729704652952,-686.520192,0.00022504,7]
[340717546,1729704652963,-686.520196,0.00022504,7]
[340717547,1729704652971,-1920.09737,0.00022504,7]
[340717548,1729704652980,-600.0,0.00022509,4]
[340717549,1729704652989,-1700.0,0.00022575,2]
[340717550,1729704652998,-206.80209693,0.00022586,2]
[340717551,1729704653007,-900.0,0.00022591,2]
[340717552,1729704653016,-1600.0,0.00022617,2]
[340717553,1729704653024,-900.0,0.00022653,2]
[340717554,1729704653033,-1600.0,0.00022663,2]
[340717555,1729704653043,-3500.0,0.00022786,2]
[340717556,1729704653052,-257.591428,0.00022787,7]
[340717557,1729704653061,-257.591428,0.00022787,7]
[340717558,1729704653070,-176.426445,0.00022787,7]
[340717559,1729704653078,-1700.0,0.0002281,2]
[340717560,1729704653087,-466.22716245,0.00022865,2]
[340717561,1729704653096,-465.11190079,0.00022869,2]
[340717562,1729704653105,-500.0,0.00022905,2]
[340717563,1729704653114,-500.0,0.00022933,2]
[340717564,1729704653123,-166.666666,0.00022944,2]
[340717565,1729704653132,-1700.0,0.00022964,2]
[340717566,1729704653142,-1361.67988856,0.00022979,10]
[340717567,1729704653151,-241.31412429,0.00023,2]
[340717568,1729704653159,-191.02,0.00023,2]
[340717569,1729704653168,-1913.69676331,0.00023,2]
[340717570,1729704653177,-1000.0,0.00023,23]
[340717571,1729704653186,-512.0,0.00023,2]
[340717572,1729704653195,-309.45300925,0.00023,2]
[340717573,1729704653204,-445.0,0.00023,2]
[340717574,1729704653213,-200.0,0.00023,2]
[340717575,1729704653222,-1000.0,0.00023013,11]
[340717576,1729704653231,-500.0,0.00023076,2]
[340717577,1729704653240,-500.0,0.00023154,2]
[340717578,1729704653248,-500.0,0.00023188,2]
[340717579,1729704653258,-500.0,0.00023236,2]
[340717580,1729704653267,-151.05957798,0.00023261,2]
[340717581,1729704653275,-512.0,0.00023288,2]
[340717582,1729704653284,-445.0,0.00023288,2]
[340717583,1729704653293,-501.16818837,0.0002331,30]
[340717584,1729704653302,-900.0,0.00023331,2]
[340717585,1729704653311,-1700.0,0.00023347,2]
[340717586,1729704653320,-1600.0,0.00023359,2]
[340717587,1729704653330,-900.0,0.00023362,2]
[340717588,1729704653339,-4000.0,0.00023411,2]
[340717589,1729704653348,-500.0,0.00023424,2]
[340717590,1729704653358,-166.666666,0.00023456,2]
[340717591,1729704653367,-900.0,0.00023466,2]
[340717592,1729704653376,-1700.0,0.0002351,2]
[340717593,1729704653385,-1000.0,0.00023561,13]
[340717594,1729704653395,-512.0,0.00023562,2]
[340717595,1729704653404,-500.0,0.00023581,2]
[340717596,1729704653413,-1700.0,0.00023589,2]
[340717597,1729704653423,-1600.0,0.00023616,2]
[340717598,1729704653431,-1600.0,0.00023674,2]
[340717599,1729704653440,-500.0,0.00023677,2]
[340717600,1729704653449,-500.0,0.00023714,2]
[340717601,1729704653458,-900.0,0.00023731,2]
[340717602,1729704653466,-1700.0,0.00023831,2]
[340717603,1729704653476,-512.0,0.00023836,2]
[340717604,1729704653485,-200.495452,0.00023836,2]
[340717605,1729704653494,-501.08394533,0.00023849,2]
[340717606,1729704653503,-900.0,0.00023864,2]
[340717607,1729704653513,-900.0,0.00023875,2]
[340717608,1729704653522,-900.0,0.00023883,2]
[340717609,1729704653532,-1700.0,0.00023885,2]
[340717610,1729704653541,-500.0,0.00023905,2]
[340717611,1729704653550,-500.0,0.00023946,2]
[340717612,1729704653559,-166.666666,0.00023969,2]
[340717613,1729704653568,-1700.0,0.00024017,2]
[340717614,1729704653577,-4500.0,0.00024063,2]
[340717615,1729704653586,-1700.0,0.00024096,2]
[340717616,1729704653595,-1000.0,0.00024109,15]
[340717617,1729704653604,-512.0,0.0002411,2]
[340717618,1729704653615,-500.0,0.00024123,2]
[340717619,1729704653623,-1700.0,0.00024155,2]
[340717620,1729704653632,-512.0,0.00024164,2]
[340717621,1729704653642,-445.0,0.00024164,2]
[340717622,1729704653651,-1613.0,0.00024189,2]
[340717623,1729704653660,-500.0,0.00024221,2]
[340717624,1729704653670,-1600.0,0.00024284,2]
[340717625,1729704653679,-954.50286223,0.00024303,2]
[340717626,1729704653687,-1600.0,0.00024322,2]
[340717627,1729704653698,-512.0,0.00024384,2]
[340717628,1729704653707,-1700.0,0.00024405,2]
[340717629,1729704653716,-1700.0,0.00024406,2]
[340717630,1729704653725,-166.666666,0.00024482,2]
[340717631,1729704653734,-1304.55226754,0.000245,2]
[340717632,1729704653743,-1659.04,0.000245,7]
[340717633,1729704653753,-500.0,0.00024509,2]
[340717634,1729704653762,-500.0,0.00024545,2]
[340717635,1729704653771,-900.0,0.00024633,2]